fUSD/lending_fUSD_20240114
["ID","MTS","AMOUNT","RATE_DAILY","PERIOD"]
[311577057,1705252332195,-439.16917918,0.00030999,4]
[311577058,1705252332204,-500.0,0.00031232,2]
[311577059,1705252332214,-7583.02,0.00031232,2]
[311577060,1705252332223,-1627.74240756,0.00031232,2]
[311577061,1705252332235,-1577.47759244,0.00031232,2]
[311577062,1705252332245,-63.75930967,0.00031232,2]
[311577063,1705252332263,-836.63069033,0.00031232,2]
[311577064,1705252332272,-9.59917969,0.00031232,2]
[311577065,1705252332283,-2136.97082031,0.00031232,2]
[311577066,1705252332293,-77.53977645,0.00031232,2]
[311577067,1705252333559,-372.06258748,0.00026605,2]
[311577068,1705252333568,-443.931316,0.00030133,7]
[311577069,1705252333578,-443.931316,0.00030136,7]
[311577070,1705252333587,-443.931316,0.00030136,7]
[311577071,1705252333596,-2704.14346452,0.00030136,2]
[311577072,1705252333608,-364.317929,0.00030136,2]
[311577073,1705252333642,-369.58860648,0.00030136,2]
[311577074,1705252333652,-3438.05,0.0003041,2]
[311577075,1705252333661,-443.931316,0.0003041,7]
[311577076,1705252333670,-443.931316,0.0003041,7]
[311577077,1705252333679,-3438.05,0.00030684,2]
[311577078,1705252333688,-443.931316,0.00030684,7]
[311577079,1705252333697,-443.931316,0.00030684,7]
[311577080,1705252333706,-551.09300312,0.00030958,2]
[311577081,1705252333738,-1136.31970679,0.00030958,2]
[311577082,1705252333748,-1750.63729009,0.00030958,2]
[311577083,1705252333758,-443.931316,0.00030958,7]
[311577084,1705252333767,-443.931316,0.00030958,7]
[311577085,1705252333777,-443.931316,0.00030958,7]
[311577086,1705252333786,-1213.23408779,0.00031232,2]
[311577087,1705252333797,-719.87613576,0.00031232,2]
[311577088,1705252333807,-1610.95562346,0.00031232,2]
[311577089,1705252333820,-538.26795474,0.00031232,2]
[311577090,1705252333832,-1288.8264218,0.00031232,2]
[311577091,1705252333842,-1.86186878,0.00031232,7]
[311577092,1705252333854,-442.06944722,0.00031232,7]
[311577093,1705252333865,-443.931322,0.00031232,7]
[311577094,1705252333874,-1294.79923078,0.00031506,2]
[311577095,1705252333885,-877.11189204,0.00031506,2]
[311577096,1705252333898,-1190.08,0.00031506,2]
[311577097,1705252333910,-2570.0,0.00031506,2]
[311577098,1705252571455,180.64908343,0.00022098,2]
[311577099,1705252714734,155.0,0.00022098,2]
[311577100,1705252716531,302.67803736,0.00022098,2]
[311577101,1705252720457,283.84561309,0.00022098,2]
[311577102,1705252720509,223.81614779,0.00022098,2]
[311577103,1705252721744,845.481875,0.00022098,2]
[311577104,1705252722248,236.41110306,0.00022098,2]
[311577105,1705252725846,629.94373517,0.00022098,2]
[311577106,1705252730554,3197.150764,0.00022098,2]
[311577107,1705252901530,452.85,0.00021183,2]
[311577108,1705252905668,1000.0,0.00022098,2]
[311577109,1705253008554,180.6490834,0.00022043,2]
[311577110,1705253043795,1463.04,0.00021936,2]
[311577111,1705253050520,9261.497,0.00022052,2]
[311577112,1705253054722,214.66,0.00021794,2]
[311577113,1705253058757,2000.0,0.00021735,2]
[311577114,1705253063470,340.72694204,0.00022096,2]
[311577115,1705253081383,53943.4309,0.00022052,2]
[311577116,1705253154122,744.83,0.0002173,2]
[311577118,1705253177381,442.94502464,0.00022096,2]
[311577119,1705253199490,272.46,0.00021794,2]
[311577120,1705253203227,250.0,0.00021794,2]
[311577121,1705253204972,14894.93,0.00021844,2]
[311577122,1705253288509,640.11,0.00021643,2]
[311577123,1705253288635,442.94502464,0.00022096,2]
[311577124,1705253305049,13992.0,0.00021758,2]
[311577125,1705253308858,154.24,0.00021864,2]
[311577126,1705253324859,4244.0846129,0.00022102,2]
[311577127,1705253326424,523.58449934,0.00022102,2]
[311577128,1705253328385,155.0,0.00022102,2]
[311577129,1705253331325,472.92249472,0.00022102,2]
[311577130,1705253331407,155.0,0.00022102,2]
[311577131,1705253333063,5329.76335956,0.00022102,2]
[311577132,1705253333613,242.31099707,0.00022102,2]
[311577133,1705253335747,155.0,0.00022102,2]
[311577134,1705253335878,10000.0,0.00021918,2]
[311577135,1705253342129,252.77865356,0.00022102,2]
[311577136,1705253343160,155.0,0.00022102,2]
[311577137,1705253344121,4623.14199213,0.00022102,2]
[311577138,1705253344712,155.0,0.00022102,2]
[311577139,1705253346570,523.43271801,0.00022102,2]
[311577140,1705253347286,404.01534873,0.00022102,2]
[311577141,1705253348392,155.0,0.00022102,2]
[311577142,1705253354959,155.0,0.00022102,2]
[311577146,1705253357738,233.03383861,0.00022102,2]
[311577147,1705253359051,324.76476321,0.00022102,2]
[311577148,1705253359773,3188.36893674,0.00022102,2]
[311577149,1705253362067,2054.8085,0.00022052,2]
[311577150,1705253363372,248.55625965,0.00022101,2]
[311577151,1705253363643,259.9949317,0.00022101,2]
[311577152,1705253364492,2018.96995483,0.00022102,2]
[311577153,1705253373448,2778.38766529,0.00022102,2]
[311577154,1705253375779,1169.58255902,0.00021264,2]
[311577155,1705253377341,155.0,0.00022102,2]
[311577158,1705253388890,150.0,0.00022081,2]
[311577159,1705253391241,436.1304858,0.00022096,2]
[311577160,1705253394878,155.0,0.00022102,2]
[311577161,1705253398235,155.0,0.00022102,2]
[311577162,1705253400958,523.58449934,0.00022102,2]
[311577163,1705253403419,842.51048405,0.00022101,2]
[311577166,1705253414152,155.0,0.00022102,2]
[311577167,1705253419753,482.14,0.00019762,2]
[311577168,1705253420020,482.14,0.00022025,2]
[311577169,1705253431163,758.41453335,0.00022102,2]
[311577170,1705253431578,324.76476321,0.00022102,2]
[311577174,1705253432287,-295.28510411,0.00022103,2]
[311577175,1705253432296,-150.0,0.00022149,2]
[311577176,1705253432305,-93.60955608,0.0002215,2]
[311577177,1705253432329,-580.09952,0.0002215,2]
[311577178,1705253432340,-436.58,0.0002215,2]
[311577181,1705253432356,-464.97661858,0.0002215,2]
[311577198,1705253438044,-1465.75683516,0.0002215,2]
[311577199,1705253438054,-155.0,0.0002215,2]
[311577200,1705253438063,-514.98040546,0.0002215,2]
[311577201,1705253438073,-1315.18275938,0.0002215,2]
[311577202,1705253438085,-2300.12187364,0.0002215,2]
[311577203,1705253438095,-286.33384578,0.0002215,2]
[311577204,1705253438104,-765.80999369,0.0002215,2]
[311577205,1705253438114,-155.19835302,0.0002215,2]
[311577206,1705253438124,-155.000001,0.0002215,2]
[311577207,1705253438133,-265.185965,0.0002215,2]
[311577208,1705253438142,-242.09591349,0.0002215,2]
[311577209,1705253438152,-203.02938773,0.0002215,2]
[311577210,1705253438162,-472.4799857,0.0002215,2]
[311577211,1705253438171,-4330.16411337,0.0002215,2]
[311577212,1705253438181,-155.37689232,0.0002215,2]
[311577213,1705253438191,-155.0,0.0002215,2]
[311577214,1705253438200,-252.5301879,0.0002215,2]
[311577215,1705253438210,-3584.12841825,0.0002215,2]
[311577216,1705253438219,-403.02391117,0.0002215,2]
[311577217,1705253438229,-155.0,0.0002215,2]
[311577218,1705253438238,-522.98055675,0.0002215,2]
[311577219,1705253438248,-160.50698877,0.0002215,2]
[311577220,1705253438257,-232.81366223,0.0002215,2]
[311577221,1705253438267,-2018.96995483,0.0002215,2]
[311577222,1705253438277,-259.74846786,0.0002215,2]
[311577223,1705253438287,-247.95426877,0.0002215,2]
[311577224,1705253438297,-1748.52555062,0.0002215,2]
[311577225,1705253438306,-155.0,0.0002215,2]
[311577226,1705253438315,-155.0,0.0002215,2]
[311577227,1705253438325,-521.14554167,0.0002215,2]
[311577228,1705253438334,-155.0,0.0002215,2]
[311577229,1705253438344,-254.24357833,0.0002215,2]
[311577230,1705253438353,-155.0,0.0002215,2]
[311577231,1705253438362,-646.47285778,0.00022151,2]
[311577232,1705253438372,-30906.15973033,0.00022152,2]
[311577233,1705253438392,-50224.04312032,0.00022152,2]
[311577234,1705253438449,-7044.86805012,0.00022152,2]
[311577235,1705253438461,-2342.94665092,0.00022152,2]
[311577236,1705253438472,-1685.38135919,0.00022152,2]
[311577237,1705253438484,-782.71098342,0.00022152,2]
[311577238,1705253438497,-1297.59,0.00022152,2]
[311577239,1705253438530,-4525.29631233,0.00022152,2]
[311577244,1705253438568,-2278.8,0.00022152,2]
[311577246,1705253438580,-901.26188379,0.00022152,2]
[311577250,1705253438609,-5248.9,0.00022152,2]
[311577251,1705253438621,-671.63054407,0.00022152,2]
[311577252,1705253438633,-813.03275168,0.00022152,2]
[311577253,1705253438645,-1317.61530056,0.00022152,2]
[311577255,1705253438657,-936.21947458,0.00022152,2]
[311577257,1705253438668,-6556.19332217,0.00022152,2]
[311577260,1705253438680,-1006.88595186,0.00022152,2]
[311577261,1705253438691,-1111.86806754,0.00022152,2]
[311577262,1705253438723,-778.10065441,0.00022152,2]
[311577447,1705253440512,-5922.02679632,0.00022152,2]
[311577449,1705253440524,-317.26439257,0.00022152,2]
[311577452,1705253440537,-1564.92062283,0.00022152,2]
[311577454,1705253440550,-542.13576991,0.00022152,2]
[311577463,1705253440626,-2366.25066617,0.00022152,2]
[311577465,1705253440638,-1019.48332495,0.00022152,2]
[311577468,1705253440650,-828.94073578,0.00022152,2]
[311577470,1705253440663,-279.29622383,0.00022152,2]
[311577480,1705253440744,-4150.80525206,0.00022152,2]
[311577482,1705253440758,-78167.45103504,0.00022152,2]
[311577484,1705253440771,-13213.43717365,0.00022152,2]
[311577487,1705253440783,-2634.1279362,0.00022152,2]
[311577573,1705253441619,-61139.43549488,0.00022152,2]
[311577574,1705253441630,-300.93559721,0.00022196,2]
[311577575,1705253441640,-21486.34484734,0.00022196,2]
[311577576,1705253441652,-400.06896681,0.00022196,2]
[311577577,1705253441662,-155.00002362,0.00022196,2]
[311577578,1705253441672,-155.14275381,0.00022196,2]
[311577580,1705253441683,-417.6160908,0.00022196,2]
[311577582,1705253441693,-285.07168855,0.00022196,2]
[311577584,1705253441705,-171.68625232,0.00022196,2]
[311577587,1705253441716,-3855.00674069,0.00022196,2]
[311577589,1705253441731,-262.56388506,0.00022196,2]
[311577591,1705253441752,-2317.09975572,0.00022196,2]
[311577593,1705253441772,-528.68959497,0.00022196,2]
[311577595,1705253441790,-7499.80832538,0.00022196,2]
[311577597,1705253441800,-160.46586719,0.00022196,2]
[311577599,1705253441811,-202.44330084,0.00022196,2]
[311577601,1705253441821,-2135.1350746,0.00022196,2]
[311577604,1705253441831,-558.00169098,0.00022196,2]
[311577606,1705253441842,-3325.25210067,0.00022196,2]
[311577608,1705253441852,-155.0,0.00022196,2]
[311577610,1705253441862,-1766.13596665,0.00022196,2]
[311577612,1705253441872,-1427.40182184,0.00022196,2]
[311577614,1705253441883,-234.89781562,0.00022196,2]
[311577616,1705253441893,-155.0,0.00022196,2]
[311577618,1705253441905,-234.11386093,0.00022197,2]
[311577620,1705253441916,-376.44759867,0.00022198,2]
[311577622,1705253441927,-246.39576141,0.00022198,2]
[311577624,1705253441937,-4938.90011796,0.00022198,2]
[311577627,1705253441948,-155.29862635,0.00022198,2]
[311577629,1705253441959,-155.1310098,0.00022198,2]
[311577631,1705253441969,-1254.8177837,0.00022198,2]
[311577633,1705253441979,-290.04601327,0.00022198,2]
[311577635,1705253441989,-2605.00000774,0.00022198,2]
[311577637,1705253442000,-354.12902011,0.00022198,2]
[311577639,1705253442010,-155.0,0.00022198,2]
[311577641,1705253442020,-220.79925735,0.00022198,2]
[311577643,1705253442030,-155.29146383,0.00022198,2]
[311577646,1705253442048,-155.26501897,0.00022198,2]
[311577648,1705253442058,-157.3878743,0.00022198,2]
[311577650,1705253442069,-155.52499358,0.00022198,2]
[311577652,1705253442080,-155.0,0.00022198,2]
[311577654,1705253442090,-155.0,0.00022198,2]
[311577656,1705253442101,-236.17727712,0.00022198,2]
[311577658,1705253442115,-1912.9258164,0.00022198,2]
[311577660,1705253442126,-2612.76863363,0.00022198,2]
[311577662,1705253442136,-155.0,0.00022198,2]
[311577664,1705253442148,-524.5808357,0.00022198,2]
[311577667,1705253442159,-155.19735349,0.00022198,2]
[311577669,1705253442169,-2034.94250733,0.00022198,2]
[311577671,1705253442179,-4267.19887316,0.00022198,2]
[311577673,1705253442190,-2464.17884195,0.00022198,2]
[311577675,1705253442200,-155.0,0.00022198,2]
[311577677,1705253442210,-243083.2426234,0.00022198,2]
[311577679,1705253442220,-155.0,0.00022198,2]
[311577681,1705253442230,-250.02290447,0.00022198,2]
[311577683,1705253442240,-2766.5766924,0.00022198,2]
[311577685,1705253442250,-155.0,0.00022198,2]
[311577687,1705253442260,-155.08844451,0.00022198,2]
[311577689,1705253442270,-2304.07734728,0.00022198,2]
[311577692,1705253442281,-1844.61921989,0.00022198,2]
[311577694,1705253442291,-301.90910224,0.00022198,2]
[311577696,1705253442302,-1888.06243048,0.00022198,2]
[311577698,1705253442312,-155.267189,0.00022198,2]
[311577700,1705253442321,-4482.56051579,0.00022198,2]
[311577702,1705253442331,-155.0908618,0.00022198,2]
[311577704,1705253442342,-6245.2263515,0.00022199,2]
[311577706,1705253442351,-13289.66153992,0.000222,2]
[311577709,1705253442368,-5239.6,0.000222,2]
[311577849,1705253443746,-1250.44589732,0.000222,2]
[311577853,1705253443785,-4269.55169471,0.000222,2]
[311577855,1705253443797,-9501.04018586,0.000222,2]
[311577857,1705253443808,-3050.44911589,0.000222,2]
[311577859,1705253443819,-4300.93950235,0.000222,2]
[311577861,1705253443830,-465.86630432,0.000222,2]
[311577864,1705253443841,-655.78210194,0.000222,2]
[311577867,1705253443861,-202976.66365769,0.000222,2]
[311577869,1705253443870,-171.35,0.00022302,2]
[311577871,1705253443879,-171.35,0.00022363,2]
[311577873,1705253443889,-171.35,0.00022424,2]
[311577875,1705253443899,-171.35,0.00022485,2]
[311577877,1705253443908,-1266.09,0.0002254,2]
[311577879,1705253443918,-171.35,0.00022547,2]
[311577881,1705253443927,-171.35,0.00022608,2]
[311577883,1705253443937,-171.35,0.00022669,2]
[311577885,1705253443946,-171.35,0.0002273,2]
[311577887,1705253443956,-272.46,0.00022772,2]
[311577889,1705253443966,-171.35,0.00022791,2]
[311577891,1705253443975,-171.35,0.00022852,2]
[311577893,1705253443984,-3011.46161791,0.00022884,3]
[311577920,1705253444252,-677.57886403,0.00022884,3]
[311577924,1705253444319,-1191.74198282,0.00022884,3]
[311577926,1705253444329,-717.18,0.00022884,2]
[311577928,1705253444339,-186.2578125,0.00022889,3]
[311577930,1705253444348,-424.47882793,0.00022889,3]
[311577932,1705253444357,-194.69467815,0.00022889,3]
[311577934,1705253444370,-5000.0,0.000229,2]
[311577936,1705253444380,-171.35,0.00022914,2]
[311577938,1705253444389,-1000.0,0.00022949,2]
[311577940,1705253444399,-171.35,0.00022975,2]
[311577942,1705253444408,-150.0,0.00023,2]
[311577944,1705253444417,-171.35,0.00023036,2]
[311577946,1705253444427,-171.35,0.00023097,2]
[311577948,1705253444437,-171.35,0.00023158,2]
[311577950,1705253444446,-171.35,0.00023219,2]
[311577952,1705253444455,-171.35,0.00023281,2]
[311577954,1705253444464,-171.35,0.00023342,2]
[311577956,1705253444474,-171.35,0.00023403,2]
[311577958,1705253444483,-171.35,0.00023464,2]
[311577960,1705253444493,-156.68,0.00023486,2]
[311577962,1705253444503,-272.46,0.00023751,2]
[311577964,1705253444512,-164.25,0.00023778,2]
[311577966,1705253444521,-200.98944307,0.00024,2]
[311577969,1705253444531,-482.14,0.00024289,2]
[311577971,1705253444540,-250.0,0.00024658,2]
[311577973,1705253444550,-3480.29,0.00024658,4]
[311577975,1705253444559,-180.6490834,0.00024707,2]
[311577977,1705253444569,-272.46,0.00024729,2]
[311577979,1705253444578,-1583.00550367,0.00025,2]
[311577981,1705253444587,-201.87194842,0.00025,2]
[311577983,1705253444597,-1070.01161759,0.00025,2]
[311577985,1705253444606,-167.23848345,0.00025,2]
[311577987,1705253444615,-272.46,0.00025707,2]
[311577989,1705253444625,-1000.0,0.00025817,2]
[311577991,1705253444634,-150.0,0.00026079,2]
[311577993,1705253444643,-482.14,0.00026553,2]
[311577995,1705253444652,-2370.62,0.00026575,2]
[311577997,1705253444661,-1040.90024685,0.00026604,2]
[311577998,1705253444671,-716.01,0.00026604,2]
[311578001,1705253444680,-272.46,0.00026686,2]
[311578003,1705253444690,-158.5938095,0.000273,2]
[311578005,1705253444699,-158.59380943,0.000273,2]
[311578007,1705253444708,-158.59380943,0.000273,2]
[311578009,1705253444717,-158.59380943,0.000273,2]
[311578011,1705253444727,-158.59380943,0.000273,2]
[311578013,1705253444736,-158.59380943,0.000273,2]
[311578015,1705253444745,-180.6490834,0.00027372,2]
[311578017,1705253444755,-250.0,0.00027397,2]
[311578019,1705253444764,-4000.0,0.000274,2]
[311578021,1705253444773,-169.43,0.000274,2]
[311578023,1705253444782,-8608.86,0.00027543,2]
[311578025,1705253444792,-158.59380943,0.00027572,2]
[311578027,1705253444801,-272.46,0.00027664,2]
[311578029,1705253444810,-3943.0,0.000277,2]
[311578031,1705253444819,-50039.0,0.000277,2]
[311578033,1705253444828,-156.68,0.00027905,2]
[311578035,1705253444837,-158.59380943,0.00028485,2]
[311578037,1705253444846,-160.29,0.00028586,2]
[311578039,1705253444855,-272.46,0.00028643,2]
[311578041,1705253444864,-1000.0,0.00028686,2]
[311578043,1705253444875,-155.55,0.00028798,2]
[311578045,1705253444884,-155.55,0.00028798,2]
[311578047,1705253444893,-155.55,0.00028798,2]
[311578049,1705253444902,-155.55,0.00028798,2]
[311578051,1705253444911,-155.55,0.00028798,2]
[311578053,1705253444920,-155.55,0.00028798,2]
[311578055,1705253444929,-155.55,0.00028798,2]
[311578057,1705253444939,-155.55,0.00028798,2]
[311578059,1705253444948,-126351.77667427,0.00028799,2]
[311578061,1705253444961,-11294.21903297,0.00028799,2]
[311578063,1705253444972,-97645.66600417,0.00028799,2]
[311578065,1705253444981,-352.02,0.000288,2]
[311578067,1705253444990,-4000.0,0.000288,2]
[311578069,1705253444999,-160.29,0.00028806,2]
[311578071,1705253445010,-482.14,0.00028817,2]
[311578073,1705253445019,-150.0,0.00029,2]
[311578075,1705253445028,-400.0,0.00029009,2]
[311578077,1705253445038,-160.29,0.00029026,2]
[311578079,1705253445047,-160.29,0.00029245,2]
[311578081,1705253445056,-158.59380943,0.00029397,2]
[311578083,1705253445065,-160.29,0.00029465,2]
[311578085,1705253445073,-272.46,0.00029621,2]
[311578087,1705253445082,-160.29,0.00029685,2]
[311578089,1705253445091,-205.0,0.00029752,2]
[311578091,1705253445100,-175.36700291,0.000298,2]
[311578093,1705253445110,-335715.71915492,0.0002988,2]
[311578096,1705253445129,-32043.61998212,0.0002988,2]
[311578098,1705253445138,-160.29,0.00029905,2]
[311578100,1705253445147,-322.6212628,0.00029931,2]
[311578102,1705253445157,-322.6212628,0.00029931,2]
[311578104,1705253445166,-1439.06044151,0.00029998,2]
[311578106,1705253445175,-9629.9439869,0.0003,2]
[311578108,1705253445185,-1000.0,0.0003,2]
[311578110,1705253445195,-582.05205839,0.0003,2]
[311578112,1705253445204,-904.74096856,0.0003,4]
[311578114,1705253445213,-2500.0,0.0003,2]
[311578116,1705253445222,-678.07747155,0.0003,4]
[311578117,1705253445231,-2550.6211898,0.0003,4]
[311578118,1705253445240,-34098.7408,0.00030036,2]
[311578119,1705253445249,-1019.5143,0.00030036,2]
[311578120,1705253445258,-180.6490834,0.00030036,2]
[311578121,1705253445267,-251.65794723,0.000301,4]
[311578122,1705253445276,-160.29,0.00030125,2]
[311578124,1705253445285,-727.29,0.00030136,2]
[311578126,1705253445293,-500.0,0.00030136,2]
[311578128,1705253445303,-500.0,0.00030136,2]
[311578130,1705253445312,-500.0,0.00030136,2]
[311578132,1705253445321,-500.0,0.00030136,2]
[311578134,1705253445330,-500.0,0.00030136,2]
[311578136,1705253445339,-500.0,0.00030136,2]
[311578138,1705253445348,-500.0,0.00030136,2]
[311578140,1705253445358,-500.0,0.00030136,2]
[311578142,1705253445370,-500.0,0.00030136,2]
[311578144,1705253445379,-500.0,0.00030136,2]
[311578146,1705253445388,-504.77010624,0.00030136,2]
[311578148,1705253445397,-500.0,0.00030136,2]
[311578150,1705253445406,-500.0,0.00030136,2]
[311578152,1705253445416,-500.7585747,0.00030136,2]
[311578154,1705253445425,-500.0,0.00030136,2]
[311578156,1705253445434,-555.08633849,0.00030136,2]
[311578158,1705253445443,-500.0,0.00030136,2]
[311578160,1705253445452,-500.0,0.00030136,2]
[311578162,1705253445461,-500.0,0.00030136,2]
[311578164,1705253445471,-500.0,0.00030136,2]
[311578166,1705253445480,-500.0,0.00030136,2]
[311578168,1705253445489,-501.76153208,0.00030136,2]
[311578170,1705253445499,-500.0,0.00030136,2]
[311578172,1705253445509,-500.0,0.00030136,2]
[311578174,1705253445518,-315.7053614,0.00030136,2]
[311578176,1705253445527,-562.07152715,0.00030136,2]
[311578178,1705253445537,-500.0,0.00030136,2]
[311578180,1705253445546,-500.0,0.00030136,2]
[311578182,1705253445556,-597.64045635,0.00030136,2]
[311578184,1705253445566,-509.91620346,0.00030136,2]
[311578186,1705253445576,-500.0,0.00030136,2]
[311578188,1705253445586,-500.0,0.00030136,2]
[311578190,1705253445595,-2000.0,0.00030136,2]
[311578192,1705253445605,-573.36228093,0.00030136,2]
[311578194,1705253445614,-500.0,0.00030136,2]
[311578196,1705253445623,-500.0,0.00030136,2]
[311578198,1705253445633,-303.70679712,0.00030136,2]
[311578200,1705253445642,-500.0,0.00030136,2]
[311578202,1705253445651,-370.41131882,0.00030136,2]
[311578204,1705253445660,-500.0,0.00030136,2]
[311578206,1705253445669,-564.30040752,0.00030136,2]
[311578208,1705253445679,-500.0,0.00030136,2]
[311578210,1705253445688,-508.70209491,0.00030136,2]
[311578212,1705253445698,-500.0,0.00030136,2]
[311578215,1705253445708,-500.0,0.00030136,2]
[311578217,1705253445718,-566.53927106,0.00030136,2]
[311578219,1705253445727,-500.0,0.00030136,2]
[311578221,1705253445737,-500.0,0.00030136,2]
[311578223,1705253445746,-522.14,0.00030136,2]
[311578225,1705253445756,-500.0,0.00030136,2]
[311578227,1705253445768,-500.0,0.00030136,2]
[311578229,1705253445778,-500.0,0.00030136,2]
[311578231,1705253445787,-500.0,0.00030136,2]
[311578233,1705253445796,-574.46,0.00030136,2]
[311578235,1705253445805,-500.0,0.00030136,2]
[311578237,1705253445814,-500.0,0.00030136,2]
[311578239,1705253445823,-500.0,0.00030136,2]
[311578240,1705253445833,-500.0,0.00030136,2]
[311578242,1705253445842,-994.2,0.00030136,2]
[311578244,1705253445851,-500.0,0.00030136,2]
[311578247,1705253445861,-500.0,0.00030136,2]
[311578248,1705253445870,-500.0,0.00030136,2]
[311578250,1705253445880,-500.0,0.00030136,2]
[311578253,1705253445894,-551.16,0.00030136,2]
[311578255,1705253445904,-500.0,0.00030136,2]
[311578257,1705253445914,-508.68831803,0.00030136,2]
[311578259,1705253445922,-500.0,0.00030136,2]
[311578260,1705253445929,-500.0,0.00030136,2]
[311578263,1705253445937,-500.0,0.00030136,2]
[311578264,1705253445944,-500.0,0.00030136,2]
[311578266,1705253445951,-500.0,0.00030136,2]
[311578268,1705253445958,-500.0,0.00030136,2]
[311578270,1705253445966,-500.0,0.00030136,2]
[311578272,1705253445973,-260.76088315,0.00030136,2]
[311578274,1705253445980,-500.0,0.00030136,2]
[311578275,1705253445987,-500.0,0.00030136,2]
[311578277,1705253445996,-500.0,0.00030136,2]
[311578280,1705253446006,-500.0,0.00030136,2]
[311578281,1705253446016,-504.45113636,0.00030136,2]
[311578283,1705253446025,-717.74,0.00030136,2]
[311578285,1705253446037,-500.0,0.00030136,2]
[311578287,1705253446051,-500.0,0.00030136,2]
[311578289,1705253446064,-500.0,0.00030136,2]
[311578292,1705253446074,-619.57606936,0.00030136,2]
[311578294,1705253446084,-500.0,0.00030136,2]
[311578296,1705253446093,-500.26561001,0.00030136,2]
[311578297,1705253446104,-500.0,0.00030136,2]
[311578300,1705253446113,-500.0,0.00030136,2]
[311578302,1705253446122,-500.0,0.00030136,2]
[311578304,1705253446131,-625.88,0.00030136,2]
[311578306,1705253446140,-500.0,0.00030136,2]
[311578308,1705253446149,-500.0,0.00030136,2]
[311578310,1705253446158,-500.0,0.00030136,2]
[311578312,1705253446167,-500.0,0.00030136,2]
[311578314,1705253446176,-500.0,0.00030136,2]
[311578316,1705253446185,-532.9655159,0.00030136,2]
[311578318,1705253446194,-500.0,0.00030136,2]
[311578319,1705253446203,-500.0,0.00030136,2]
[311578322,1705253446213,-614.43,0.00030136,2]
[311578323,1705253446222,-500.0,0.00030136,2]
[311578324,1705253446231,-500.0,0.00030136,2]
[311578325,1705253446240,-500.0,0.00030136,2]
[311578326,1705253446249,-500.0,0.00030136,2]
[311578327,1705253446260,-500.0,0.00030136,2]
[311578328,1705253446274,-724.1,0.00030136,2]
[311578330,1705253446287,-500.0,0.00030136,2]
[311578332,1705253446296,-250.0,0.00030136,2]
[311578334,1705253446305,-2030.25,0.00030136,2]
[311578336,1705253446314,-524.14454829,0.00030136,2]
[311578338,1705253446324,-500.0,0.00030136,2]
[311578340,1705253446333,-503.54,0.00030136,2]
[311578342,1705253446343,-500.0,0.00030136,2]
[311578344,1705253446352,-511.22,0.00030136,2]
[311578346,1705253446362,-672.63,0.00030136,2]
[311578348,1705253446373,-500.0,0.00030136,2]
[311578350,1705253446382,-500.0,0.00030136,2]
[311578352,1705253446391,-500.0,0.00030136,2]
[311578354,1705253446400,-500.0,0.00030136,2]
[311578356,1705253446409,-500.0,0.00030136,2]
[311578358,1705253446418,-500.0,0.00030136,2]
[311578360,1705253446428,-500.0,0.00030136,2]
[311578362,1705253446437,-500.0,0.00030136,2]
[311578364,1705253446447,-500.0,0.00030136,2]
[311578366,1705253446456,-500.0,0.00030136,2]
[311578368,1705253446466,-500.0,0.00030136,2]
[311578370,1705253446478,-500.0,0.00030136,2]
[311578372,1705253446490,-500.0,0.00030136,15]
[311578376,1705253446499,-583.54571647,0.00030136,2]
[311578377,1705253446509,-500.0,0.00030136,2]
[311578380,1705253446519,-944.58,0.00030136,2]